Cogmind - Beta 10.2 @@@ ROGUE MODE // 2022.03.04 @ 04:27:43 Player: woegarden Result: Destroyed by G-34 Mercenary with Small Laser Performance ------------- Evolutions (0) 0 Regions Visited (4) 800 Robots Destroyed (20) 100 Value Destroyed (535) 535 Prototype IDs (23) 460 Alien Tech Used (0) 0 Bonus (517) 517 TOTAL SCORE: 2412 Bonus ------- Follower Combat Kills 217 Aligned with FarCom 300 Cogmind --------- Core Integrity 0/250 Matter 284/300 Energy 80/100 System Corruption 3% Temperature Cool (6) Movement Core (1500) Ox29 Location -9/Mines Parts ------- > --- POWER (1) -------- (None) > --- PROPULSION (2) --- (None) > --- UTILITY (2) ------ Humpback > --- WEAPON (2) ------- Gauss Cannon Makeshift Spear > --- INVENTORY (24) --- Improved Ion Engine Light Nuclear Core Aluminum Leg Aluminum Leg Aluminum Leg Aluminum Leg Aluminum Leg Aluminum Leg Aluminum Leg Humpback Humpback Improved Melee Analysis Suite Heavy Assault Rifle Grenade Launcher Mining Laser Peak State ------------ > --- POWER ------------ Light Nuclear Core > --- PROPULSION ------- Aluminum Leg Aluminum Leg > --- UTILITY ---------- Humpback > --- WEAPON ----------- Guided Plasma Cannon Heavy Missile Launcher > --- INVENTORY -------- Improved Ion Engine Light Nuclear Core Aluminum Leg Aluminum Leg Aluminum Leg Aluminum Leg Aluminum Leg Aluminum Leg Aluminum Leg Humpback Humpback Improved Melee Analysis Suite Heavy Assault Rifle Gauss Cannon Grenade Launcher Mining Laser Makeshift Spear [Rating: 22] Favorites ----------- Power Light Nuclear Core Engine Light Ion Engine Power Core Light Nuclear Core Propulsion Aluminum Leg Leg Aluminum Leg Flight Unit Flight Unit Utility Humpback Device Improved Heat Sink Storage Humpback Weapon Heavy Assault Rifle Energy Gun Medium Laser Energy Cannon Guided Plasma Cannon Ballistic Gun Heavy Assault Rifle Ballistic Cannon Gauss Cannon Launcher Heavy Missile Launcher Piercing Weapon Makeshift Spear Build | -11 -10 -10 -10 -9 ------- Run | Scr Mat Min Exi Min Slots Evolved . | . . . . . Power . | . . . . . Propulsion . | . . . . . Utility . | . . . . . Weapon . | . . . . . Parts Attached 21 | . 7 8 2 4 Power 3 | . 1 2 . . Engine 2 | . 1 1 . . Core 1 | . . 1 . . Reactor . | . . . . . Propulsion 7 | . 4 2 1 . Treads . | . . . . . Leg 6 | . 4 1 1 . Wheel . | . . . . . Hover . | . . . . . Flight 1 | . . 1 . . Utility 2 | . 1 . 1 . Device 1 | . 1 . . . Storage 1 | . . . 1 . Processor . | . . . . . Hackware . | . . . . . Protection . | . . . . . Artifact . | . . . . . Weapon 9 | . 1 4 . 4 Energy Gun . | . . . . . Energy Cannon 1 | . . . . 1 Ballistic Gun 5 | . 1 4 . . Ballistic Cannon 1 | . . . . 1 Launcher 1 | . . . . 1 Special Weapon . | . . . . . Impact Weapon . | . . . . . Slashing Weapon . | . . . . . Piercing Weapon 1 | . . . . 1 Special Melee Weapon . | . . . . . Unidentified Prototypes . | . . . . . Parts Lost 6 | . 1 . . 5 Power 1 | . . . . 1 Propulsion 2 | . . . . 2 Utility . | . . . . . Weapon 3 | . 1 . . 2 Highest Loss Streak 5 | . 1 . . 5 Average Slot Usage (%) 89 | . 88 100 95 83 Engine 4 | . 14 12 . . Core 9 | . . 1 14 13 Leg 27 | . 28 27 28 27 Device 5 | . 5 14 10 . Storage 13 | . 14 14 13 14 Energy Cannon 5 | . . . . 10 Ballistic Gun 19 | . 19 28 28 13 Launcher 1 | . . . . 3 Naked Turns . | . . . . . Heaviest Build 102 | 12 13 16 91 102 Greatest Support 20 | 20 20 20 20 20 Greatest Overweight (x) 26 | . . 2 4 26 Average Overweight (x) 1 | . . . . 4 Largest Inventory Capacity 24 | . 6 6 24 24 Average Capacity 16 | . 6 6 10 24 Most Carried 19 | . 6 6 10 19 Average Carried 11 | . 5 5 6 16 Final Capacity 24 | 6 6 6 24 24 Final Carried 17 | 6 6 6 10 17 Class Distribution -------------------- 52% | Scavenger-Mutant 42% | Hauler-Mutant 4% | Mutant Dominant Class ---------------- Mutant | -10/Materials Scavenger-Mutant | -10/Mines Scavenger-Mutant | -10/Exiles Hauler-Mutant | -9/Mines Resources | -11 -10 -10 -10 -9 ----------- Run | Scr Mat Min Exi Min Matter Collected 553 | 200 85 129 . 139 Remotely . | . . . . . Salvage Created 692 | . 164 95 . 433 Parts 40 | . 13 4 . 23 Haulers Intercepted . | . . . . . Recyclers Shooed . | . . . . . Parts Field Recycled . | . . . . . Retrieved Matter . | . . . . . Parts Self-Destructed . | . . . . . Prevented . | . . . . . Kills | -11 -10 -10 -10 -9 ------- Run | Scr Mat Min Exi Min Combat Hostiles Destroyed 20 | . 4 4 . 12 Guns 8 | . 4 4 . . Cannons 12 | . . . . 12 Classes Destroyed 4 | . 1 1 . 2 Tunneler 1 | . . . . 1 Swarmer 6 | . . 3 . 3 Grunt 13 | . 4 1 . 8 Assembled 1 | . . . . 1 Best Kill Streak 4 | . 4 3 . 3 Combat Bots Only 4 | . 4 3 . 3 Max Kills in Single Turn 1 | . 1 1 . 1 Gunslinging . | . . . . . Exploded . | . . . . . Melee . | . . . . . Uniques/NPCs Destroyed . | . . . . . Combat | -11 -10 -10 -10 -9 -------- Run | Scr Mat Min Exi Min Damage Taken 1460 | . 200 289 . 971 Core 253 | . 10 50 . 193 Absorbed by Shields . | . . . . . Core Remaining (%) 100 | 100 . . . . Volleys Fired 66 | . 18 11 . 37 Largest 2 | . 2 2 . 1 Hottest 120 | . 70 46 . 120 Shots Fired 79 | . 21 22 . 36 Gun 43 | . 21 22 . . Cannon 36 | . . . . 36 Launcher . | . . . . . Special . | . . . . . Kinetic 40 | . 18 22 . . Thermal 39 | . 3 . . 36 Explosive . | . . . . . Electromagnetic . | . . . . . Robot Hit Streak 19 | . 9 5 . 19 Robot Miss Streak 3 | . 1 3 . . Penetration Max . | . . . . . Secondary Targets 1 | . 1 . . . Max Gunslinging Chain 1 | . 1 . . . Shots Hit Robots 48 | . 19 10 . 19 Core Hits 32 | . 9 7 . 16 Critical Hits . | . . . . . Critical Kills . | . . . . . Critical Parts Destroyed . | . . . . . Melee Attacks . | . . . . . Impact . | . . . . . Slashing . | . . . . . Piercing . | . . . . . Sneak Attacks . | . . . . . Combat Hostiles . | . . . . . Follow-up Attacks . | . . . . . Damage Inflicted 1116 | . 167 162 . 787 Guns 328 | . 167 161 . . Cannons 695 | . . . . 695 Explosions . | . . . . . Melee . | . . . . . Ramming 93 | . . 1 . 92 Kinetic 290 | . 129 161 . . Thermal 733 | . 38 . . 695 Explosive . | . . . . . Electromagnetic . | . . . . . Impact . | . . . . . Slashing . | . . . . . Piercing . | . . . . . Highest Corruption 3 | . . . . 3 Average Corruption 2 | . . . . 2 Corruption Purged . | . . . . . Effects 25 | . . . . 25 Message Errors 9 | . . . . 9 Matter Fused 8 | . . . . 8 Heat Flow Errors 3 | . . . . 3 Energy Discharges 2 | . . . . 2 Data Loss (minor) 2 | . . . . 2 Weapon Failures 1 | . . . . 1 Overload Shots . | . . . . . Overflow Damage 18 | . . . . 18 Projectiles 18 | . . . . 18 Explosions . | . . . . . Melee . | . . . . . Knockbacks 1 | . . . . 1 Impact 1 | . . . . 1 Kinetic . | . . . . . Secondary . | . . . . . Self-Inflicted Damage 32 | . . . . 32 Shots . | . . . . . Rammed 15 | . . 1 . 14 Targets Rammed 19 | . . 1 . 18 Kicked 4 | . . . . 4 Crushed . | . . . . . Highest Temperature 488 | . 65 . . 488 Average Temperature 149 | . 29 . . 158 Received Heat Transfer 489 | . 114 27 . 348 Effects 4 | . . . . 4 Energy Bleed 2 | . . . . 2 Matter Decay 1 | . . . . 1 Damage (minor) 1 | . . . . 1 Siege Activations . | . . . . . Robots Corrupted . | . . . . . Combat Hostiles . | . . . . . Parts Fried . | . . . . . Impact Corruptions . | . . . . . Robots Melted . | . . . . . Combat Hostiles . | . . . . . Parts Melted 2 | . 1 . . 1 Heat Transferred 1631 | . 111 . . 1520 Parts Sabotaged . | . . . . . Parts Stolen . | . . . . . Parts Stripped . | . . . . . Power Chain Reactions . | . . . . . Missiles Intercepted . | . . . . . Alert | -11 -10 -10 -10 -9 ------- Run | Scr Mat Min Exi Min Peak Influence 319 | . 95 136 . 319 Initial 36 | . . 36 . . Average 63 | . 43 67 . 65 Maximum Alert Level 1 | . . . . 1 Low Security (%) 86 | . 100 100 . 78 Level 1 13 | . . . . 21 Level 2 . | . . . . . Level 3 . | . . . . . Level 4 . | . . . . . Level 5 . | . . . . . High Security . | . . . . . Max Security . | . . . . . Squads Dispatched 1 | . 1 . . . Investigation . | . . . . . Extermination . | . . . . . Reinforcement 1 | . 1 . . . Assault . | . . . . . Garrison . | . . . . . Intercept . | . . . . . Construction Impeded . | . . . . . Haulers Reinforced . | . . . . . Stealth | -11 -10 -10 -10 -9 --------- Run | Scr Mat Min Exi Min Distress Signals . | . . . . . Communications Jammed . | . . . . . Distress Signals . | . . . . . Times Spotted 34 | . 6 8 . 20 Peak Tracking Total 5 | . 5 3 . 4 Tactical Retreats 3 | . . 1 . 2 Traps | -11 -10 -10 -10 -9 ------- Run | Scr Mat Min Exi Min Traps Triggered 1 | . . . . 1 Indirectly . | . . . . . Trap Hack Attempts . | . . . . . Triggered . | . . . . . Disarmed . | . . . . . Reprogrammed . | . . . . . Reused . | . . . . . Traps Extracted . | . . . . . Installed . | . . . . . Triggered 1 | . . . . 1 Exploded 2 | . . . 2 . Machines | -11 -10 -10 -10 -9 ---------- Run | Scr Mat Min Exi Min Machines Disabled . | . . . . . Max in Single Turn . | . . . . . Machines Sabotaged . | . . . . . Garrisons Compromised . | . . . . . Overloaded Fab Kills . | . . . . . Fab Network Shutdowns . | . . . . . Hacking | -11 -10 -10 -10 -9 --------- Run | Scr Mat Min Exi Min Machines Accessed 2 | . . . 1 1 Terminals . | . . . . . Fabricators . | . . . . . Repair Stations . | . . . . . Recycling Units . | . . . . . Scanalyzers . | . . . . . Garrison Access . | . . . . . Total Hacks 2 | . . . 1 1 Successful 2 | . . . 1 1 Failed . | . . . . . Catastrophic . | . . . . . Database Lockouts . | . . . . . Manual 1 | . . . 1 . Terminals . | . . . . . Fabricators . | . . . . . Repair Stations . | . . . . . Recycling Units . | . . . . . Scanalyzers . | . . . . . Garrison Access . | . . . . . Terminal Hacks 2 | . . . 1 1 Open Door 1 | . . . . 1 EX-Prototype ID Bank 1 | . . . 1 . Fabricator Hacks . | . . . . . Repair Station Hacks . | . . . . . Recycling Unit Hacks . | . . . . . Scanalyzer . | . . . . . Garrison Access Hacks . | . . . . . Unauthorized Hacks . | . . . . . Terminals . | . . . . . Fabricators . | . . . . . Repair Stations . | . . . . . Recycling Units . | . . . . . Scanalyzers . | . . . . . Garrison Access . | . . . . . Data Cores Recovered . | . . . . . Used . | . . . . . Hacking Detections . | . . . . . Full Trace Events . | . . . . . Feedback Events . | . . . . . Feedback Blocked . | . . . . . Robot Schematics Acquired . | . . . . . Robots Built . | . . . . . Matter . | . . . . . Time . | . . . . . Total Robot Build Rating . | . . . . . Part Schematics Acquired . | . . . . . Parts Built . | . . . . . Matter . | . . . . . Time . | . . . . . Total Part Build Rating . | . . . . . Parts Repaired . | . . . . . Time . | . . . . . Parts Recycled . | . . . . . Recycled Matter . | . . . . . Retrieved Matter . | . . . . . Retrieved Components . | . . . . . Parts Scanalyzed . | . . . . . Part Schematics Acquired . | . . . . . Parts Damaged . | . . . . . Bothacking | -11 -10 -10 -10 -9 ------------ Run | Scr Mat Min Exi Min Used RIF Installer . | . . . . . Robots Hacked . | . . . . . Non-combat . | . . . . . Combat . | . . . . . Robot Hacks Applied . | . . . . . Relay Couplers Released . | . . . . . Robots Rewired . | . . . . . Allies Hacked . | . . . . . Hacks Repelled . | . . . . . Allies | -11 -10 -10 -10 -9 -------- Run | Scr Mat Min Exi Min Total Allies 3 | . . 2 . 1 Largest Group 2 | . . 2 2 1 Highest-Rated Group 44 | . . 44 44 31 Highest-Rated Ally 31 | . . 31 31 31 Total Orders . | . . . . . Ally Attacks 35 | . . 3 . 32 Total Damage 475 | . . 41 . 434 Kills 9 | . . 1 . 8 Allies Corrupted . | . . . . . Allies Melted . | . . . . . Intel | -11 -10 -10 -10 -9 ------- Run | Scr Mat Min Exi Min Robot Analysis Total . | . . . . . Derelict Logs Recovered 3 | . . 2 . 1 Drone Launches . | . . . . . Drone Recoveries . | . . . . . Exploration | -11 -10 -10 -10 -9 ------------- Run | Scr Mat Min Exi Min Turns Passed 3204 | . 310 765 386 1743 Spaces Moved 1644 | 1 209 517 278 639 Core 1 | . . . . 1 Treads . | . . . . . Legs 1642 | 1 209 516 278 638 Wheels . | . . . . . Hover . | . . . . . Flight 1 | . . 1 . . Fastest Speed 120 | 120 120 120 120 240 Average Speed 176 | 120 120 133 135 248 Slowest Speed 1350 | 120 120 210 240 1350 Overloaded Moves . | . . . . . Propulsion Burnouts . | . . . . . Robots Hopped . | . . . . . Cave-ins Triggered . | . . . . . Exploration Rate (%) 51 | 2 35 82 61 77 Regions Visited 4 Branch Regions 3 Pre-discovered Areas 2 | . . 1 . 1 Known Exits Taken . | . . . . . Unknown Exits Taken 4 | 1 1 1 1 . Scrap Searched 4 | . . 1 . 3 Spaces Dug . | . . . . . Terrain Destroyed . | . . . . . Melee . | . . . . . Projectile . | . . . . . AOE . | . . . . . Terrain Rammed . | . . . . . Walls Destroyed . | . . . . . Machines Disabled . | . . . . . Actions | -11 -10 -10 -10 -9 --------- Run | Scr Mat Min Exi Min Total 1841 | . 255 572 287 727 Wait 50 | . 6 26 . 18 Move 1640 | . 208 516 277 639 Hop . | . . . . . Pick Up 23 | . 6 2 5 10 Fast Attach 5 | . 1 3 1 . Attach 3 | . 1 . . 2 Detach . | . . . . . Swap 13 | . 5 5 1 2 Drop 22 | . 10 8 3 1 Fire 66 | . 18 11 . 37 Melee . | . . . . . Ram . | . . . . . Kick 19 | . . 1 . 18 Crush . | . . . . . Escape Stasis . | . . . . . Rewire . | . . . . . Trap . | . . . . . Miscellaneous . | . . . . . Route ------- -11/Scrapyard -10/Materials -10/Mines (discovered 3 exits: [*Mat x2] / *Exi) -10/Exiles -9/Mines History --------- Turn | Location | Event 1 | -11/Scrapyard | Discovered new exit (range 0) 1 | -11/Scrapyard | Entered Materials 294 | -10/Materials | Discovered new exit (range 15) 311 | -10/Materials | Entered Mines 406 | -10/Mines | Learned Materials emergency access door positions 470 | -10/Mines | Discovered new exit (range 10) 477 | -10/Mines | Build established: Scavenger-Mutant 685 | -10/Mines | Discovered new exit (range 6) 697 | -10/Mines | Joined a pair of Derelicts in attacking an 0b10 outpost 951 | -10/Mines | Learned location of Storage (-8) 1058 | -10/Mines | Deemed a non-threat by the Exiles lab entrance 1059 | -10/Mines | Discovered new exit (range 5) 1076 | -10/Mines | Entered Exiles 1076 | -10/Exiles | Accompanied by 2 allies 1106 | -10/Exiles | Led the pair of lost Derelicts to a safe place 1106 | -10/Exiles | Met 8R-AWN 1127 | -10/Exiles | Met EX-HEX 1165 | -10/Exiles | Met EX-BIN 1178 | -10/Exiles | Aligned with FarCom system 1180 | -10/Exiles | Given EX-Vault access code 1207 | -10/Exiles | Opened EX-Vault 1222 | -10/Exiles | Found Gui. Plasma Cannon 1246 | -10/Exiles | Warned to stay clear of 0b10 Research branches 1259 | -10/Exiles | Exiles lab attacked by MAIN.C 1433 | -10/Exiles | Discovered new exit (range 14) 1462 | -10/Exiles | Left Exiles lab with Gui. Plasma Cannon 1462 | -10/Exiles | Entered Mines 1504 | -9/Mines | Met a Derelict who couldn't figure out how to use a Trap Extractor 2156 | -9/Mines | Build established: Hauler-Mutant 2381 | -9/Mines | Excavation squad dispatched 2381 | -9/Mines | A large section of the Mines collapsed 2553 | -9/Mines | Received a Mining Laser from a helpful Derelict 2631 | -9/Mines | Excavation squad dispatched 2725 | -9/Mines | Core integrity fell below 50% 2765 | -9/Mines | A weapon hastily lodged in a ceiling crevice suddenly fell to the ground 2881 | -9/Mines | Excavation squad dispatched 3131 | -9/Mines | Excavation squad dispatched 3184 | -9/Mines | Core integrity fell below 20% 3205 | -9/Mines | Destroyed by G-34 Mercenary with Small Laser Last Messages --------------- 03152_ Kicked T-07 Excavator out of the way. 03152_ T-07 Excavator destroyed. 03154_ Kicked G-34 Mercenary out of the way. 03155_ Gui. Plasma Cannon destroyed. 03157_ Slammed into G-34 Mercenary. 03157_ G-34 Mercenary knocked back. 03160_ Slammed into G-34 Mercenary. 03160_ Destabilizing: Core damaged (-5). 03162_ Kicked G-34 Mercenary out of the way. 03165_ Aluminum Leg destroyed. 03167_ Slammed into G-34 Mercenary. 03169_ Hvy. Missile Launcher destroyed. 03171_ Slammed into G-34 Mercenary. 03171_ Lgt. Nuclear Core destroyed. 03173_ System corrupted: Energy discharge (-40). 03174_ Slammed into G-34 Mercenary. 03181_ Slammed into U-05 Engineer. 03185_ Aluminum Leg destroyed. 03202_ Acquired 4 matter. 03203_ System corrupted: Gauss Cannon jammed. Map ----- +----------------------------------------------------+ | """ ##?#%#????????????????????? | | """ ## #####?# ?????????????????????? | | #### ##??? ? ?????????????????????? | | #??## ##??? ?##?????????????????????? | | #???# ##?? ????????????????????????? | | ##??## #?? ????????????????????????? | | ####??## #?? ????????????????????????? | | # ####?????# #?# #???????????????????????? | | # #????????# ##?# #???????????????????????? | | # #????????## ##??# #???????????????????????? | | # #?????????# ###???# #???????????????????????? | | # ##????????# ####??# #???????????????????????? | | # ##???????# #??# #???????????????????????? | | # #####???#### #??# #???????????????????????? | | ### #### #####???????????????????? | | #???????????????????? | | ###### ########### ###?????????????????? | | #???? ???????????# ##????????????????? | | ## #???# ????????????# #????????????????? | | ?## ##??# ?????????????## #????????????????? | | ???###???#?????????????## ##????????????????? | | ##?????????????????????# ##????????????????? | | ##????????????????????# #????????????????? | | =##???????????????????# #????????????????? | | [%=####????????????????## ##????????????????? | | #?????????????????#@%%##?????????????????? | | ## #???????????########g##??????????????????? | | ### #???????####? #%#???????????????????? | | ###?# #???????#" ### #g#???????????????????? | | ????# #???????# ! !# #%#???????????????????? | | ????# #???????# ^ #%#???????????????????? | | #####!#???????# !! #%#???????????????????? | | == [%#???????# / !# #%#####???????????????? | | #####%#???????# ### #=| #???????????????? | | #???#=#???????##### #!### #???????????????? | | #???#%#???????????# #%#???????????????????? | | #???#[#???????????# #*#???????????????????? | | #???#=############## ####!#???????????????????? | | #???# g ####=#########???????????? | | ????################ g #?????????? | | ????????????????#### ##############???????????? | | ???????????????## ##???????????????????????? | | ???????????????# #???????????????????????? | | ???????????????# #???????????????????????? | | ???????????????## #???????????????????????? | | ????????????????## ##???????????????????????? | | ?????????????????## ##????????????????????????? | | ??????????????????####?????????????????????????? | | ???????????????????????????????????????????????? | | ???????????????????????????????????????????????? | +----------------------------------------------------+ Best States ------------- Heat Dissipation 39 Energy Generation 14 Energy Capacity 250 Matter Stores 300 Matter Capacity 300 Sight Range 16 Terrain Scan Density 10 Evasion (%) 40 Item Schematics ----------------- None Robot Schematics ------------------ None Fabricated ------------ Nothing Alien Tech Used ----------------- None Achievements -------------- None Challenges ------------ None Game ------ Seed FrostSingularityPlating Manual? 0 Play Time 00:19:39 Cumulative 69.2 hours Start 2022.03.04 @ 04:08:15 End 2022.03.04 @ 04:27:43 Sessions 1 Manual Loads 0 Difficulty Rogue Special Mode None Game No. 92 Rogue 46 Adventurer 45 Explorer 1 Win Type - Total 0 Types 0/0/0/0/0/0/0/0/0 Lore% 25 Gallery% 46 Achievement% 31 Wizard Run 0 Options --------- ASCII 0 Keyboard 0 Movement Mouse Keybinds 0 Fullscreen 2 Font 16/Proggy Map View 76x50 Tactical HUD 1 Map Filters NONE Filters LOW_CONTRAST(13,24,33)|BRIGHTNESS(90)|SATURATION(87) Steam 1 RUN: 4415a28a-9117-40f1-8f41-7bf3b2702ddd